fUST/lending_fUST_20250804
["ID","MTS","AMOUNT","RATE_DAILY","PERIOD"]
[377075952,1754245840407,-152.1008972,0.00034766,2]
[377075953,1754245840416,-151.0,0.00034766,2]
[377075954,1754245840426,-151.0,0.00034766,2]
[377075955,1754245840435,-500.0,0.00034766,2]
[377075956,1754245840444,-500.0,0.00034766,2]
[377075957,1754245840454,-151.0,0.00034766,2]
[377075958,1754245840463,-500.0,0.00034766,2]
[377075959,1754245840473,-151.0,0.0003481,2]
[377075960,1754245840483,-155.56990773,0.0003481,2]
[377075961,1754245840492,-500.0,0.0003481,2]
[377075962,1754245840501,-151.0,0.0003481,2]
[377075963,1754245840510,-1000.0,0.00034821,5]
[377075964,1754245840520,-358.45193933,0.00034821,5]
[377075965,1754245840529,-500.0,0.00035029,7]
[377075966,1754245840538,-290.95666128,0.00035029,7]
[377075967,1754245840547,-798.39,0.0003503,3]
[377075968,1754245840556,-225.5507694,0.0003504,2]
[377075969,1754245840567,-151.60995757,0.0003504,2]
[377075970,1754245840577,-151.0,0.0003504,2]
[377075971,1754245840587,-151.0,0.0003504,2]
[377075972,1754245840596,-152.41842028,0.0003504,2]
[377075973,1754245840606,-199.6,0.00035074,3]
[377075974,1754245840615,-292.59605113,0.00035084,2]
[377075975,1754245840624,-302.0,0.00035084,2]
[377075976,1754245840634,-151.0,0.00035084,2]
[377075977,1754245840643,-500.0,0.00035142,7]
[377075978,1754245840652,-191.5,0.00035163,60]
[377075979,1754245840661,-899.68102324,0.00035368,5]
[377075980,1754245840671,-1152.0,0.00035664,2]
[377075981,1754245840680,-317.00117519,0.000357,2]
[377075982,1754245840689,-910.29524792,0.00035876,2]
[377075983,1754245840698,-500.0,0.00035883,7]
[377075984,1754245840708,-760.9,0.00035966,3]
[377075985,1754245840717,-500.0,0.00035976,5]
[377075986,1754245840727,-500.0,0.00035976,5]
[377075987,1754245840737,-500.0,0.00035976,5]
[377075988,1754245840746,-500.0,0.00035976,5]
[377075989,1754245840755,-500.0,0.00035976,5]
[377075990,1754245840764,-500.0,0.00035976,5]
[377075991,1754245840774,-500.0,0.00035976,5]
[377075992,1754245840783,-500.0,0.00035976,5]
[377075993,1754245840792,-503.53538674,0.00035976,5]
[377075994,1754245840801,-500.0,0.00035976,5]
[377075995,1754245840810,-200.0,0.00035986,15]
[377075996,1754245840819,-200.0,0.00035986,15]
[377075997,1754245840829,-200.0,0.00035986,15]
[377075998,1754245840838,-200.0,0.00035986,15]
[377075999,1754245840847,-200.0,0.00035986,15]
[377076000,1754245840856,-371.0,0.00035986,15]
[377076001,1754245840866,-509.82041471,0.00036056,7]
[377076002,1754245840875,-798.38,0.00036068,3]
[377076003,1754245840961,-883532.5312274,0.000361,2]
[377076004,1754245840971,-182.30118804,0.000361,2]
[377076005,1754245840981,-151.0,0.0003617,5]
[377076006,1754245840990,-151.0,0.0003617,5]
[377076007,1754245841000,-151.0,0.0003617,5]
[377076008,1754245841010,-151.0,0.0003617,5]
[377076009,1754245841019,-151.0,0.0003617,5]
[377076010,1754245841029,-151.0,0.0003617,5]
[377076011,1754245841039,-151.0,0.0003617,5]
[377076012,1754245841048,-151.0,0.0003617,5]
[377076013,1754245841058,-151.0,0.0003617,5]
[377076014,1754245841067,-151.0,0.0003617,5]
[377076015,1754245841076,-151.0,0.0003617,5]
[377076016,1754245841086,-151.0,0.0003617,5]
[377076017,1754245841095,-151.0,0.00036347,14]
[377076018,1754245841105,-151.0,0.00036352,10]
[377076019,1754245841116,-299.01473573,0.00036358,10]
[377076020,1754245841125,-51915.5197384,0.00036359,3]
[377076021,1754245841134,-200.0,0.00036372,120]
[377076022,1754245841144,-151.0,0.00036373,14]
[377076023,1754245841153,-1596.78,0.000364,3]
[377076024,1754245841165,-775.39,0.000364,7]
[377076025,1754245841174,-399.2,0.00036444,3]
[377076026,1754245841184,-500.0,0.00036524,5]
[377076027,1754245841193,-182.57103385,0.00036524,5]
[377076028,1754245841203,-1000.0,0.00036524,5]
[377076029,1754245841212,-263.02104221,0.00036524,5]
[377076030,1754245841223,-500.0,0.00036524,5]
[377076031,1754245841233,-179.16722638,0.00036524,5]
[377076032,1754245841243,-1000.0,0.00036524,5]
[377076033,1754245841252,-544.60092842,0.0003655,5]
[377076034,1754245841262,-151.0,0.00036626,10]
[377076035,1754245841272,-17262.07,0.00036642,120]
[377076036,1754245841282,-500.0,0.00036769,5]
[377076037,1754245841292,-500.0,0.00036769,2]
[377076038,1754245841301,-500.0,0.00036769,5]
[377076039,1754245841312,-500.0,0.00036769,5]
[377076040,1754245841323,-500.0,0.00036769,5]
[377076041,1754245841333,-500.0,0.00036769,5]
[377076042,1754245841344,-150.0,0.0003677,5]
[377076043,1754245841355,-910.29524789,0.00036797,2]
[377076044,1754245841366,-261.87964648,0.000368,18]
[377076045,1754245841377,-241.81946971,0.000368,18]
[377076046,1754245841387,-241.81946971,0.000368,18]
[377076047,1754245841397,-151.0,0.00036889,14]
[377076048,1754245841406,-151.0,0.0003691,14]
[377076049,1754245841417,-191.5,0.0003698,60]
[377076050,1754245841428,-2000.0,0.00037,90]
[377076051,1754245841438,-427.0,0.00037,2]
[377076052,1754245841448,-189.99,0.00037067,2]
[377076053,1754245841458,-604.89858281,0.00037072,5]
[377076054,1754245841467,-924.50981498,0.00037072,5]
[377076055,1754245841476,-1000.0,0.00037317,5]
[377076056,1754245841486,-1000.0,0.00037317,2]
[377076057,1754245841495,-500.0,0.00037317,5]
[377076058,1754245841509,-500.0,0.00037317,5]
[377076059,1754245841518,-575.7063143,0.00037317,5]
[377076060,1754245841528,-1000.0,0.00037317,5]
[377076061,1754245841538,-250.0,0.00037318,5]
[377076062,1754245841551,-1521.8,0.00037336,3]
[377076063,1754245841560,-500.0,0.00037376,7]
[377076064,1754245841570,-17262.07,0.00037464,120]
[377076065,1754245841579,-151.0,0.00037589,14]
[377076066,1754245841590,-910.29524789,0.00037718,2]
[377076067,1754245841600,-1500.0,0.00037865,2]
[377076068,1754245841609,-1500.0,0.00037865,5]
[377076069,1754245841619,-500.0,0.00037865,5]
[377076070,1754245841630,-434.67554926,0.00037866,5]
[377076071,1754245841640,-500.0,0.00037973,5]
[377076072,1754245841649,-500.0,0.00037973,5]
[377076073,1754245841659,-150.0,0.00037973,5]
[377076074,1754245841668,-500.0,0.00037973,5]
[377076075,1754245841678,-51915.5197384,0.00037989,3]
[377076076,1754245841688,-201.0,0.0003799,48]
[377076077,1754245841698,-151.0,0.0003799,14]
[377076078,1754245841708,-151.713914,0.0003799,14]
[377076079,1754245841717,-151.0,0.0003799,14]
[377076080,1754245841726,-2660.91509184,0.00037999,2]
[377076081,1754245841736,-2266.03,0.00038,38]
[377076082,1754245841747,-300.0,0.00038,120]
[377076083,1754245841757,-2000.0,0.00038,90]
[377076084,1754245841767,-775.39,0.00038,7]
[377076085,1754245841778,-17262.07,0.00038286,120]
[377076086,1754245841789,-600.0,0.00038293,2]
[377076087,1754245841799,-400.0,0.00038356,120]
[377076088,1754245841810,-500.0,0.00038356,5]
[377076089,1754245841820,-500.0,0.00038413,2]
[377076090,1754245841829,-2000.0,0.00038413,5]
[377076091,1754245841839,-189.99,0.0003847,2]
[377076092,1754245841848,-51915.5197384,0.0003847,3]
[377076093,1754245841857,-500.0,0.00038473,5]
[377076094,1754245841867,-506.74926842,0.00038473,5]
[377076095,1754245841876,-500.0,0.00038473,5]
[377076096,1754245841886,-500.0,0.00038473,2]
[377076097,1754245841895,-500.94423311,0.00038473,5]
[377076098,1754245841905,-500.0,0.00038473,5]
[377076099,1754245841916,-500.0,0.00038473,5]
[377076100,1754245841926,-151.0,0.00038473,14]
[377076101,1754245841936,-151.0,0.00038473,14]
[377076102,1754245841947,-151.0,0.00038473,14]
[377076103,1754245841956,-170.890935,0.00038473,14]
[377076104,1754245841966,-151.0,0.00038473,14]
[377076105,1754245841976,-170.890935,0.00038473,14]
[377076106,1754245841986,-200.0,0.00038479,30]
[377076107,1754245841996,-400.0,0.0003848,5]
[377076108,1754245842006,-151.0,0.0003848,14]
[377076109,1754245842016,-151.0,0.0003848,14]
[377076110,1754245842026,-152.927246,0.0003848,14]
[377076111,1754245842036,-295.245532,0.0003848,14]
[377076112,1754245842045,-170.890935,0.0003848,14]
[377076113,1754245842055,-170.890935,0.0003848,14]
[377076114,1754245842064,-200.0,0.00038489,30]
[377076115,1754245842073,-154.658264,0.0003849,14]
[377076116,1754245842083,-173.883419,0.0003849,14]
[377076117,1754245842092,-151.0,0.0003849,14]
[377076118,1754245842101,-151.0,0.0003849,14]
[377076119,1754245842111,-151.0,0.0003849,14]
[377076120,1754245842120,-151.0,0.0003849,14]
[377076121,1754245842130,-177.787584,0.0003849,14]
[377076122,1754245842139,-51915.5197384,0.0003849,3]
[377076123,1754245842148,-170.890935,0.0003849,14]
[377076124,1754245842157,-170.890935,0.0003849,14]
[377076125,1754245842167,-202.68736873,0.00038499,30]
[377076126,1754245842176,-55824.759404,0.000385,120]
[377076127,1754245842186,-2303.27,0.000385,7]
[377076128,1754245842195,-2788.96,0.000385,14]
[377076129,1754245842205,-151.0,0.000385,14]
[377076130,1754245842214,-151.0,0.000385,14]
[377076131,1754245842224,-151.0,0.000385,14]
[377076132,1754245842233,-151.376274,0.000385,14]
[377076133,1754245842242,-152.310121,0.000385,14]
[377076134,1754245842252,-165.142364,0.000385,14]
[377076135,1754245842261,-165.142364,0.000385,14]
[377076136,1754245842271,-151.0,0.000385,14]
[377076137,1754245842280,-151.0,0.000385,14]
[377076138,1754245842290,-168.928,0.000385,14]
[377076139,1754245842299,-151.0,0.000385,14]
[377076140,1754245842308,-151.0,0.000385,14]
[377076141,1754245842323,-151.0,0.000385,14]
[377076142,1754245842332,-163.482212,0.000385,14]
[377076143,1754245842342,-151.0,0.000385,14]
[377076144,1754245842351,-151.0,0.000385,14]
[377076145,1754245842361,-151.0,0.000385,14]
[377076146,1754245842370,-151.0,0.000385,14]
[377076147,1754245842379,-151.0,0.000385,14]
[377076148,1754245842389,-151.0,0.000385,14]
[377076149,1754245842398,-151.0,0.000385,14]
[377076150,1754245842407,-151.0,0.000385,14]
[377076151,1754245842417,-151.0,0.000385,14]
[377076152,1754245842426,-151.0,0.000385,14]
[377076153,1754245842436,-151.0,0.000385,14]
[377076154,1754245842445,-151.0,0.000385,14]
[377076155,1754245842455,-151.0,0.000385,14]
[377076156,1754245842464,-151.0,0.000385,14]
[377076157,1754245842474,-151.0,0.000385,14]
[377076158,1754245842484,-151.0,0.000385,14]
[377076159,1754245842494,-210.396796,0.000385,14]
[377076160,1754245842503,-210.396796,0.000385,14]
[377076161,1754245842512,-151.0,0.000385,14]
[377076162,1754245842522,-299.06,0.000385,14]
[377076163,1754245842606,-151.0,0.000385,14]
[377076164,1754245842615,-151.0,0.000385,14]
[377076165,1754245842625,-151.873512,0.000385,14]
[377076166,1754245842635,-170.890935,0.000385,14]
[377076167,1754245842644,-170.890935,0.000385,14]
[377076168,1754245842654,-51915.5197384,0.00038511,3]
[377076169,1754245842663,-501.72606197,0.00038521,5]
[377076170,1754245842673,-1000.0,0.00038521,5]
[377076171,1754245842683,-250.0,0.00038521,5]
[377076172,1754245842693,-151.0,0.00038555,14]
[377076173,1754245842702,-500.0,0.00038573,5]
[377076174,1754245842711,-300.14602026,0.00038573,5]
[377076175,1754245842722,-500.0,0.00038573,5]
[377076176,1754245842731,-1073.0,0.00038596,5]
[377076177,1754245842741,-910.29524789,0.00038638,2]
[377076178,1754245842750,-191.5,0.00038797,60]
[377076179,1754245842761,-151.0,0.000388,16]
[377076180,1754245842770,-150.0,0.00038873,3]
[377076181,1754245842780,-1467.19032018,0.00038961,5]
[377076182,1754245842790,-562.47826107,0.00039,14]
[377076183,1754245842801,-2000.0,0.00039,39]
[377076184,1754245842811,-2000.0,0.00039,90]
[377076186,1754245842822,-312.16666667,0.00039,10]
[377076187,1754245842844,-170.890935,0.0003901,14]
[377076188,1754245842856,-170.890935,0.0003901,14]
[377076189,1754245842867,-1000.0,0.00039021,5]
[377076190,1754245842876,-501.13003715,0.00039021,5]
[377076191,1754245842886,-1000.0,0.00039021,2]
[377076192,1754245842896,-350.0,0.00039068,5]
[377076193,1754245842905,-800.0,0.00039094,7]
[377076194,1754245842914,-151.0,0.00039094,14]
[377076195,1754245842924,-151.0,0.000391,17]
[377076196,1754245842934,-17262.07,0.00039108,120]
[377076197,1754245842944,-502.71865441,0.00039121,5]
[377076198,1754245842954,-51915.5197384,0.00039125,3]
[377076199,1754245842964,-151.0,0.00039135,14]
[377076200,1754245842974,-151.0,0.00039135,14]
[377076201,1754245842984,-151.0,0.00039135,14]
[377076202,1754245842994,-151.0,0.00039135,14]
[377076203,1754245843003,-151.0,0.00039135,14]
[377076204,1754245843013,-151.0,0.00039135,14]
[377076205,1754245843023,-800.0,0.00039203,7]
[377076206,1754245843032,-800.0,0.00039216,7]
[377076207,1754245843042,-800.0,0.00039222,7]
[377076208,1754245843051,-800.0,0.00039276,7]
[377076209,1754245843061,-170.890935,0.00039284,14]
[377076210,1754245843071,-170.890935,0.00039284,14]
[377076211,1754245843080,-800.0,0.00039293,7]
[377076212,1754245843090,-151.0,0.00039294,14]
[377076213,1754245843100,-151.0,0.000393,14]
[377076214,1754245843109,-210.396796,0.000393,14]
[377076215,1754245843119,-210.396796,0.000393,14]
[377076216,1754245843128,-151.0,0.00039301,14]
[377076217,1754245843137,-151.0,0.00039301,14]
[377076218,1754245843147,-151.0,0.00039301,14]
[377076219,1754245843157,-151.0,0.00039301,14]
[377076220,1754245843166,-151.0,0.00039301,14]
[377076221,1754245843176,-151.0,0.00039301,14]
[377076222,1754245843186,-151.0,0.00039301,14]
[377076223,1754245843195,-151.0,0.00039301,14]
[377076224,1754245843205,-151.0,0.00039301,14]
[377076225,1754245843214,-151.0,0.00039311,14]
[377076226,1754245843224,-800.0,0.00039312,7]
[377076227,1754245843234,-800.0,0.00039372,7]
[377076229,1754245843243,-800.0,0.00039385,7]
[377076231,1754245843252,-151.0,0.000394,20]
[377076233,1754245843261,-200.0,0.00039458,30]
[377076235,1754245843270,-200.0,0.00039458,30]
[377076237,1754245843279,-200.0,0.00039458,30]
[377076239,1754245843289,-200.0,0.00039458,30]
[377076241,1754245843298,-200.0,0.00039458,30]
[377076243,1754245843308,-200.0,0.00039458,30]
[377076245,1754245843317,-200.0,0.00039458,30]
[377076247,1754245843327,-200.0,0.00039458,30]
[377076249,1754245843336,-320.0,0.00039458,30]
[377076251,1754245843347,-151.0,0.0003949,14]
[377076253,1754245843356,-179.753152,0.0003949,14]
[377076255,1754245843365,-154.435106,0.0003949,14]
[377076257,1754245843375,-151.0,0.0003949,14]
[377076259,1754245843384,-151.0,0.0003949,14]
[377076261,1754245843394,-2000.0,0.000395,120]
[377076263,1754245843403,-4000.0,0.000395,120]
[377076266,1754245843412,-165.142364,0.000395,14]
[377076268,1754245843421,-165.142364,0.000395,14]
[377076270,1754245843431,-151.0,0.000395,14]
[377076272,1754245843440,-151.0,0.000395,14]
[377076274,1754245843449,-151.0,0.000395,14]
[377076276,1754245843459,-151.0,0.000395,14]
[377076278,1754245843469,-163.482212,0.000395,14]
[377076280,1754245843480,-151.0,0.000395,14]
[377076282,1754245843490,-156.0,0.000395,15]
[377076285,1754245843499,-169.610873,0.000395,14]
[377076287,1754245843509,-210.396796,0.000395,14]
[377076289,1754245843518,-210.396796,0.000395,14]
[377076291,1754245843527,-170.890935,0.000395,14]
[377076293,1754245843536,-170.890935,0.000395,14]
[377076295,1754245843548,-151.0,0.00039513,14]
[377076297,1754245843558,-151.0,0.00039513,14]
[377076299,1754245843568,-151.0,0.00039556,14]
[377076301,1754245843577,-151.0,0.00039556,14]
[377076303,1754245843587,-151.0,0.00039556,14]
[377076305,1754245843598,-151.0,0.00039556,14]
[377076307,1754245843607,-151.0,0.00039556,14]
[377076308,1754245843616,-151.0,0.00039556,14]
[377076310,1754245843628,-151.0,0.00039556,14]
[377076313,1754245843638,-151.0,0.00039556,14]
[377076315,1754245843648,-151.0,0.00039556,14]
[377076316,1754245843658,-151.0,0.00039556,14]
[377076318,1754245843667,-910.29524789,0.00039559,2]
[377076320,1754245843676,-150.0,0.00039565,2]
[377076322,1754245843686,-30000.0,0.00039566,120]
[377076325,1754245843696,-151.0,0.00039566,14]
[377076327,1754245843705,-151.0,0.00039566,14]
[377076329,1754245843715,-151.0,0.00039566,14]
[377076331,1754245843724,-151.0,0.00039566,14]
[377076333,1754245843733,-151.0,0.00039566,14]
[377076335,1754245843743,-165.142364,0.00039566,14]
[377076337,1754245843753,-165.142364,0.00039566,14]
[377076339,1754245843762,-151.0,0.00039566,14]
[377076341,1754245843772,-151.0,0.00039566,14]
[377076343,1754245843781,-151.0,0.00039566,14]
[377076345,1754245843791,-163.482212,0.00039566,14]
[377076347,1754245843801,-151.0,0.00039566,14]
[377076349,1754245843811,-210.396796,0.00039566,14]
[377076351,1754245843820,-210.396796,0.00039566,14]
[377076353,1754245843830,-151.0,0.00039566,14]
[377076355,1754245843839,-151.0,0.00039566,14]
[377076357,1754245843849,-170.890935,0.00039566,14]
[377076359,1754245843858,-170.890935,0.00039566,14]
[377076361,1754245843867,-151.0,0.00039568,14]
[377076363,1754245843877,-1004.8011171,0.00039568,5]
[377076365,1754245843886,-1000.0,0.00039568,5]
[377076367,1754245843895,-500.0,0.00039573,5]
[377076370,1754245843910,-501.96037417,0.00039573,5]
[377076372,1754245843919,-151.0,0.00039573,14]
[377076374,1754245843929,-151.0,0.00039573,14]
[377076376,1754245843938,-151.0,0.00039573,14]
[377076378,1754245843947,-775.39,0.000396,7]
[377076380,1754245843958,-151.0,0.000396,14]
[377076382,1754245843967,-151.0,0.000396,14]
[377076384,1754245843977,-151.0,0.000396,14]
[377076386,1754245843986,-151.0,0.000396,14]
[377076388,1754245843995,-450.0,0.00039616,5]
[377076390,1754245844005,-151.0,0.00039659,14]
[377076392,1754245844014,-151.0,0.00039659,14]
[377076394,1754245844024,-151.0,0.00039659,14]
[377076404,1754245844033,-1000.0,0.00039669,120]
[377076407,1754245844125,-151.0,0.00039669,14]
[377076409,1754245844134,-210.396796,0.00039669,14]
[377076411,1754245844144,-210.396796,0.00039669,14]
[377076413,1754245844153,-151.0,0.000397,17]
[377076415,1754245844162,-200.0,0.0003973,120]
[377076417,1754245844171,-151.0,0.000398,11]
[377076419,1754245844180,-200.0,0.00039808,120]
[377076421,1754245844190,-170.890935,0.00039869,14]
[377076423,1754245844199,-170.890935,0.00039869,14]
[377076425,1754245844209,-165.142364,0.00039879,14]
[377076427,1754245844218,-165.142364,0.00039879,14]
[377076429,1754245844229,-151.0,0.00039879,14]
[377076431,1754245844238,-151.0,0.00039879,14]
[377076433,1754245844248,-151.0,0.00039879,14]
[377076435,1754245844257,-163.482212,0.00039879,14]
[377076437,1754245844267,-151.0,0.00039879,14]
[377076439,1754245844276,-151.0,0.00039879,14]
[377076441,1754245844286,-151.0,0.00039879,14]
[377076444,1754245844295,-151.0,0.00039879,14]
[377076445,1754245844305,-262.22757,0.00039879,14]
[377076448,1754245844316,-233.394478,0.00039879,14]
[377076450,1754245844325,-151.0,0.00039879,14]
[377076452,1754245844335,-151.0,0.00039879,14]
[377076454,1754245844344,-210.396796,0.00039879,14]
[377076456,1754245844354,-210.396796,0.00039879,14]
[377076458,1754245844363,-151.0,0.00039879,14]
[377076460,1754245844372,-151.0,0.00039879,14]
[377076462,1754245844381,-151.0,0.00039879,14]
[377076464,1754245844391,-170.890935,0.00039879,14]
[377076466,1754245844400,-170.89092683,0.00039879,14]
[377076468,1754245844409,-165.12,0.00039888,2]
[377076470,1754245844418,-165.12,0.00039888,2]
[377076472,1754245844427,-165.12,0.00039888,2]
[377076474,1754245844436,-165.12,0.00039888,2]
[377076476,1754245844445,-206359.86432855,0.00039889,15]
[377076480,1754245844470,-265.14020708,0.00034766,2]
[377076482,1754245844480,-500.0,0.0003504,2]
[377076484,1754245844490,-11100.42561709,0.00039889,15]
[377076492,1754245844565,152.0,0.00024,120]
[377076505,1754245844675,152.0,0.00026,120]
[377076509,1754245844701,-460.95174316,0.00034705,2]
[377076511,1754245844710,-1421.78309684,0.00039889,15]
[377076528,1754245844865,152.0,0.000279,120]
[377076537,1754245844939,152.0,0.000299,120]
[377076541,1754245844964,-323.00000008,0.00039889,15]
[377076620,1754246159112,-500.0,0.00025973,2]
[377076621,1754246159140,-500.0,0.00025973,2]
[377076622,1754246159170,-500.0,0.00025973,2]
[377076623,1754246159198,-500.0,0.00025973,2]
[377076624,1754246160766,174.4723017,0.00025873,2]
[377076625,1754246215507,4813.0,0.00025204,2]
[377076630,1754246441436,160.338062,0.00013699,2]
[377076631,1754246544447,500.0,0.00025948,2]
[377076632,1754246546382,150.0,0.00024922,2]
[377076634,1754246801146,-183.28278261,0.00026905,2]
[377076635,1754246910396,155.66705839,0.00023873,2]
[377076663,1754247032663,-376.44730195,0.00028664,22]
[377076666,1754247032673,-163.54229898,0.00028808,5]
[377076669,1754247032682,-29.48206848,0.00028873,2]
[377076672,1754247032694,-126.18498991,0.00028873,2]
[377076675,1754247032703,-160.0,0.00029305,2]
[377076678,1754247032714,-215.12253551,0.00029317,2]
[377076681,1754247032723,-160.0,0.00029317,2]
[377076684,1754247032733,-160.0,0.00029317,2]
[377076687,1754247032742,-231.62108626,0.00029317,2]
[377076690,1754247032751,-735.64780631,0.00029802,2]
[377076693,1754247032761,-291.61884078,0.00030561,5]
[377076696,1754247032771,-398.76,0.000311,2]
[377076698,1754247032781,-160.338062,0.00031311,2]
[377076701,1754247032791,-152.0,0.000319,120]
[377076704,1754247032800,-500.0,0.00033267,5]
[377076708,1754247032810,-405.42879302,0.00033815,5]
[377076714,1754247032827,-94.57120698,0.00033815,5]
[377076717,1754247032837,-155.66705839,0.00033873,2]
[377076720,1754247032847,-23.15760217,0.00033898,3]
[377076723,1754247032859,-277.84239783,0.00033898,3]
[377076727,1754247032869,-400.0,0.00033898,2]
[377076729,1754247032878,-205.0,0.00033898,3]
[377076733,1754247032888,-360.0,0.00033898,3]
[377076736,1754247032898,-152.0,0.000339,120]
[377076739,1754247032907,-200.182231,0.00034145,2]
[377076743,1754247032918,-239.637568,0.00034167,2]
[377076746,1754247032928,-447.7579135,0.00034191,2]
[377076749,1754247032937,-153.0,0.00035173,2]
[377076752,1754247032947,-153.0,0.00035173,2]
[377076755,1754247032956,-153.0,0.00035173,2]
[377076758,1754247032965,-153.0,0.00035173,2]
[377076761,1754247032974,-153.0,0.00035173,2]
[377076764,1754247032983,-153.0,0.00035173,2]
[377076767,1754247032993,-153.0,0.00035173,2]
[377076769,1754247033002,-153.0,0.00035173,2]
[377076771,1754247033020,-153.0,0.00035173,2]
[377076773,1754247033029,-153.0,0.00035173,2]
[377076776,1754247033039,-153.0,0.00035173,2]
[377076779,1754247033051,-153.0,0.00035173,2]
[377076782,1754247033060,-153.0,0.00035173,2]
[377076787,1754247033070,-153.0,0.00035173,2]
[377076790,1754247033084,-153.0,0.00035173,2]
[377076793,1754247033094,-153.0,0.00035175,2]
[377076795,1754247033103,-153.0,0.00035175,2]
[377076797,1754247033113,-153.0,0.00035175,2]
[377076799,1754247033123,-153.0,0.00035175,2]
[377076800,1754247033133,-700.0,0.00035208,7]
[377076801,1754247033142,-200.0,0.00035593,15]
[377076802,1754247033152,-200.0,0.00035593,15]
[377076803,1754247033162,-200.0,0.00035593,15]
[377076804,1754247033172,-152.0,0.000358,120]
[377076805,1754247033182,-560.0,0.00036388,2]
[377076806,1754247033192,-2000.0,0.00037,90]
[377076807,1754247033203,-152.0,0.000378,120]
[377076809,1754247033212,-2000.0,0.00038,90]
[377076811,1754247033222,-184.36,0.00038063,50]
[377076813,1754247033235,-970.0,0.00038063,2]
[377076815,1754247033246,-2146.0,0.00038063,2]
[377076817,1754247033256,-635.0,0.00038063,2]
[377076819,1754247033267,-150.0,0.00038063,2]
[377076821,1754247033277,-407.0,0.00038063,2]
[377076823,1754247033287,-373.25507256,0.00038292,120]
[377076825,1754247033297,-151.0,0.00038356,14]
[377076827,1754247033307,-151.0,0.00038356,14]
[377076830,1754247033319,-400.0,0.00038356,120]
[377076832,1754247033328,-151.0,0.0003848,14]
[377076834,1754247033338,-274.296708,0.0003849,14]
[377076836,1754247033348,-200.0,0.00038966,30]
[377076838,1754247033358,-200.0,0.00038966,30]
[377076840,1754247033368,-24.66726483,0.00038966,30]
[377076851,1754247033504,-175.33273517,0.00038966,30]
[377076852,1754247033513,-240.0,0.00038966,30]
[377076853,1754247033523,-1000.0,0.00039,2]
[377076854,1754247033533,-225.6233039,0.00039,2]
[377076856,1754247033543,-612.81165195,0.00039,2]
[377076858,1754247033555,-306.40582598,0.00039,2]
[377076860,1754247033564,-153.20291299,0.00039,2]
[377076862,1754247033574,-153.20291299,0.00039,2]
[377076864,1754247033584,-2000.0,0.00039,90]
[377076865,1754247033593,-347.0,0.0003906,5]
[377076866,1754247033603,-1119.37649074,0.00039288,14]
[377076867,1754247038577,-1366.34850926,0.00039288,14]
[377076868,1754247038587,-500.0,0.00039288,7]
[377076869,1754247038598,-500.0,0.00039306,5]
[377076870,1754247038607,-2744.4549782,0.000395,120]
[377076871,1754247038619,-469.73900002,0.000395,120]